bitfinex/quotes_SOLUSD_20241122
["timestamp","ask_amount","ask_price","bid_price","bid_amount"]
[1732305355114,6.30286393,253.22,253.0,23.776884]
[1732305355410,6.302864,253.21,253.0,23.776884]
[1732305355592,4.26246051,253.2,252.95,19.3231365]
[1732305355793,23.776884,253.19,252.96,23.776884]
[1732305356010,4.26246051,253.18,252.96,23.776884]
[1732305356611,7.57368549,253.18,252.96,23.776884]
[1732305357007,7.57368549,253.18,252.98,43.30410203]
[1732305357216,6.302864,253.21,252.98,43.30410203]
[1732305357414,6.302864,253.21,252.99,19.21187869]
[1732305357725,9.82396676,253.21,252.99,19.21187869]
[1732305358026,11.86439758,253.21,253.01,19.0802949]
[1732305358225,9.82396676,253.21,253.02,43.41439679]
[1732305358609,14.08642727,253.21,253.01,23.776884]
[1732305359005,14.08642727,253.21,253.03,23.776884]
[1732305359623,4.26246051,253.2,253.03,23.776884]
[1732305362410,7.78356327,253.2,253.03,23.776884]
[1732305364703,3.52110276,253.2,253.05,23.776884]
[1732305365528,3.52110276,253.2,253.07,23.776884]
[1732305367511,7.78356327,253.2,253.03,23.776884]
[1732305367710,4.26246051,253.19,253.03,23.776884]
[1732305368511,4.26246051,253.19,253.03,42.84317357]
[1732305368915,4.26246051,253.19,253.05,23.776884]
[1732305369325,6.302864,253.22,253.05,43.09319568]
[1732305369524,4.26246051,253.28,253.07,42.8995699]
[1732305369730,6.302864,253.27,253.1,23.776884]
[1732305369911,6.302864,253.27,253.1,43.5785434]
[1732305370721,10.56532451,253.27,253.1,23.776884]
[1732305370930,4.26246051,253.26,253.1,23.776884]
[1732305371234,4.26246051,253.26,253.08,43.36442082]
[1732305372432,4.26246051,253.26,253.1,23.776884]
[1732305373033,4.26246051,253.26,253.03,19.06628957]
[1732305373233,23.776884,253.25,253.02,42.08871279]
[1732305373540,4.26246051,253.24,253.02,42.08871279]
[1732305373716,3.2668009,253.23,253.03,19.06628957]
[1732305373916,4.26246051,253.22,253.03,19.06628957]
[1732305374111,7.52926141,253.22,253.02,24.9512]
[1732305374313,7.52926141,253.22,253.03,19.06628957]
[1732305374934,7.52926141,253.22,253.06,2.5]
[1732305375121,3.2668009,253.22,253.07,23.776884]
[1732305375434,3.2668009,253.22,253.09,42.80247269]
[1732305375739,3.2668009,253.22,253.08,19.58753682]
[1732305376329,3.2668009,253.22,253.09,23.776884]
[1732305376546,3.2668009,253.22,253.09,42.80247269]
[1732305377926,6.302864,253.27,253.09,42.80247269]
[1732305378115,9.5696649,253.27,253.09,42.80247269]
[1732305378325,9.5696649,253.27,253.09,45.30247269]
[1732305378524,9.5696649,253.27,253.12,23.776884]
[1732305378840,9.5696649,253.27,253.12,26.276884]
[1732305379517,4.26246051,253.26,253.12,26.276884]
[1732305379717,4.26246051,253.26,253.11,23.776884]
[1732305379945,4.26246051,253.26,253.07,19.1226859]
[1732305380235,3.2668009,253.25,253.06,19.88515881]
[1732305380414,4.26246051,253.24,253.06,19.88515881]
[1732305380617,7.52926141,253.24,253.06,19.88515881]
[1732305381529,7.52926141,253.24,253.07,23.776884]
[1732305381731,7.52926141,253.24,253.09,23.776884]
[1732305382323,3.2668009,253.23,253.03,19.06628957]
[1732305382533,4.26246051,253.22,253.03,19.06628957]
[1732305382841,3.2668009,253.21,253.0,19.51439245]
[1732305383043,7.52926141,253.21,253.0,19.51439245]
[1732305383844,4.26246051,253.2,253.0,19.51439245]
[1732305384030,3.50491756,253.19,252.97,19.10612011]
[1732305384237,4.26246051,253.18,252.94,19.32000917]
[1732305384436,3.50491756,253.17,252.97,19.10612011]
[1732305385815,4.26246051,253.16,252.98,23.776884]
[1732305386031,3.50491756,253.15,252.98,23.776884]
[1732305386231,3.50491756,253.15,252.99,19.21187869]
[1732305386432,3.50491756,253.15,253.0,23.776884]
[1732305386644,3.50491756,253.15,253.0,26.276884]
[1732305386947,3.50491756,253.15,253.02,23.776884]
[1732305387243,3.50491756,253.15,253.02,45.91439679]
[1732305387441,3.50491756,253.15,253.03,19.06628957]
[1732305387645,3.50491756,253.15,253.04,43.22624501]
[1732305388119,3.50491756,253.15,253.05,2.5]
[1732305388316,4.26246051,253.22,253.07,19.1226859]
[1732305388547,3.50491756,253.21,253.08,23.776884]
[1732305388842,3.50491756,253.21,253.09,23.776884]
[1732305390146,3.50491756,253.21,253.09,42.80247269]
[1732305392742,4.26246051,253.2,253.06,43.66204281]
[1732305393041,2.04066479,253.33,252.9,196.95009362]
[1732305393042,6.11405455,253.56,253.41,2.5]
[1732305393223,22.7646,253.6,253.43,2.5]
[1732305393438,15.0,253.6,253.46,19.16388409]
[1732305393835,15.0,253.6,253.43,19.51919334]
[1732305394056,15.0,253.6,253.45,26.41715451]
[1732305394758,15.0,253.6,253.46,19.16388409]
[1732305395133,15.0,253.6,253.47,42.98608724]
[1732305395353,15.0,253.6,253.46,23.776884]
[1732305396064,15.0,253.6,253.47,19.20920324]
[1732305396259,15.0,253.6,253.48,23.776884]
[1732305396753,15.0,253.6,253.49,19.81506086]
[1732305396959,15.0,253.6,253.5,23.776884]
[1732305397438,15.0,253.6,253.52,23.776884]
[1732305398046,15.0,253.6,253.5,23.776884]
[1732305398247,15.0,253.6,253.48,23.776884]
[1732305398454,15.0,253.6,253.46,42.94076809]
[1732305398953,15.0,253.6,253.47,19.20920324]
[1732305399140,15.0,253.6,253.49,23.776884]
[1732305401157,15.0,253.6,253.47,19.20920324]
[1732305401360,15.0,253.6,253.48,23.776884]
[1732305402256,15.0,253.6,253.46,42.94076809]
[1732305402437,15.0,253.6,253.5,19.07749361]
[1732305402642,15.0,253.6,253.51,43.11093507]
[1732305402937,15.0,253.6,253.46,19.16388409]
[1732305403141,15.0,253.6,253.47,19.20920324]
[1732305403347,15.0,253.6,253.47,42.98608724]
[1732305403661,15.0,253.6,253.48,23.776884]
[1732305405058,15.0,253.6,253.49,43.59194486]
[1732305405645,15.0,253.6,253.48,19.48218666]
[1732305406046,15.0,253.6,253.49,43.59194486]
[1732305406241,15.0,253.6,253.48,19.48218666]
[1732305406638,15.0,253.6,253.5,23.776884]
[1732305407549,11.09910971,253.69,253.5,23.776884]
[1732305407764,3.68608749,253.68,253.5,23.776884]
[1732305408149,19.42316549,253.68,253.5,23.776884]
[1732305410063,19.42316549,253.68,253.5,26.276884]
[1732305411340,19.42316549,253.68,253.52,2.5]
[1732305411540,3.68608749,253.68,253.57,23.776884]
[1732305412858,3.68608749,253.68,253.55,23.776884]
[1732305414052,3.68608749,253.68,253.56,19.30375726]
[1732305414250,3.68608749,253.68,253.57,23.776884]
[1732305414854,3.68608749,253.68,253.55,23.776884]
[1732305415060,3.68608749,253.68,253.54,43.20106625]
[1732305416249,3.68608749,253.68,253.55,19.65820192]
[1732305416449,3.68608749,253.68,253.56,23.776884]
[1732305420258,3.68608749,253.68,253.55,23.776884]
[1732305420454,3.68608749,253.68,253.5,19.07749361]
[1732305420669,3.68608749,253.68,253.48,19.48218666]
[1732305420972,3.68608749,253.68,253.47,19.20920324]
[1732305421481,3.68608749,253.68,253.49,19.81506086]
[1732305421678,3.68608749,253.68,253.47,19.20920324]
[1732305421978,3.68608749,253.68,253.49,19.81506086]
[1732305422357,3.68608749,253.68,253.48,2.5]
[1732305422358,3.68608749,253.68,253.5,42.85437761]
[1732305423469,3.68608749,253.68,253.47,19.20920324]
[1732305424558,23.776884,253.67,253.47,19.20920324]
[1732305424771,3.68608749,253.66,253.47,19.20920324]
[1732305425967,3.68608749,253.66,253.48,43.25907066]
[1732305427267,3.68608749,253.66,253.49,19.81506086]
[1732305427472,3.68608749,253.66,253.51,19.33405107]
[1732305427670,3.68608749,253.66,253.5,23.776884]
[1732305427877,3.68608749,253.66,253.5,42.85437761]
[1732305429158,3.68608749,253.66,253.52,43.61623762]
[1732305430082,3.68608749,253.66,253.52,23.776884]
[1732305430292,3.68608749,253.66,253.48,43.25907066]
[1732305432777,3.68608749,253.66,253.5,42.85437761]
[1732305434965,3.68608749,253.66,253.55,23.776884]
[1732305435278,3.68608749,253.66,253.51,2.5]
[1732305435479,3.68608749,253.66,253.52,43.61623762]
[1732305438778,3.68608749,253.66,253.54,43.20106625]
[1732305438979,3.68608749,253.66,253.54,45.70106625]
[1732305439180,3.68608749,253.66,253.54,43.20106625]
[1732305439390,3.68608749,253.66,253.54,45.70106625]
[1732305439692,4.17676527,253.68,253.54,45.70106625]
[1732305439988,4.17676527,253.68,253.55,19.65820192]
[1732305440199,4.17676527,253.68,253.56,26.276884]
[1732305440376,4.17676527,253.68,253.56,23.776884]
[1732305440570,4.17676527,253.68,253.56,26.276884]
[1732305442298,4.17676527,253.68,253.56,48.08064126]
[1732305444012,4.17676527,253.68,253.56,28.776884]
[1732305445377,4.17676527,253.68,253.52,19.83935362]
[1732305445582,10.29081982,253.68,253.51,19.33405107]
[1732305445779,6.11405455,253.67,253.51,19.33405107]
[1732305445977,4.17676527,253.66,253.51,19.33405107]
[1732305446281,4.17676527,253.66,253.51,19.98166263]
[1732305446801,4.17676527,253.66,253.53,19.72908851]
[1732305449181,2.93461987,253.65,253.53,19.72908851]
[1732305449377,7.11138514,253.64,253.53,19.72908851]
[1732305449595,4.17676527,253.64,253.53,19.72908851]
[1732305450182,2.93526661,253.63,253.53,19.72908851]
[1732305450498,4.17676527,253.62,253.53,19.72908851]
[1732305456396,4.17676527,253.62,253.49,23.776884]
[1732305456700,2.93498675,253.61,253.49,23.776884]
[1732305456887,7.11175202,253.6,253.48,19.15560306]
[1732305457086,4.17676527,253.6,253.48,19.15560306]
[1732305457289,2.93438323,253.59,253.48,25.298912]
[1732305457487,4.17676527,253.58,253.48,25.298912]
[1732305457701,4.17676527,253.58,253.48,19.15560306]
[1732305457910,4.17676527,253.58,253.49,6.14330894]
[1732305458410,4.17676527,253.58,253.49,27.73793314]
[1732305458593,4.17676527,253.58,253.51,2.5]
[1732305458793,4.17676527,253.58,253.52,6.14330894]
[1732305460095,4.17676527,253.58,253.52,26.08304692]
[1732305461709,4.17676527,253.58,253.52,6.14330894]
[1732305462710,4.17676527,253.58,253.52,26.08304692]
[1732305463007,4.17676527,253.58,253.53,19.72908851]
[1732305463213,4.17676527,253.58,253.54,5.12876124]
[1732305464496,4.17676527,253.58,253.54,7.62876124]
[1732305464702,4.17676527,253.58,253.54,10.12876124]
[1732305465516,4.17676527,253.58,253.56,2.5]
[1732305468215,4.17676527,253.58,253.48,2.5]
[1732305468525,4.17676527,253.58,253.49,19.7179446]
[1732305472807,4.17676527,253.58,253.48,19.04396669]
[1732305473008,4.17676527,253.58,253.49,6.07003605]
[1732305473211,4.17676527,253.58,253.5,19.13137155]
[1732305473417,4.17676527,253.58,253.49,6.07003605]
[1732305474015,4.17676527,253.58,253.49,25.78798065]
[1732305475127,4.17676527,253.58,253.49,6.07003605]
[1732305475627,3.15664436,253.62,253.49,6.07003605]
[1732305475928,7.95017398,253.61,253.49,6.07003605]
[1732305476136,2.93620871,253.6,253.49,6.07003605]
[1732305476311,5.01396527,253.59,253.49,6.07003605]
[1732305476708,5.01396527,253.59,253.52,19.18785609]
[1732305476933,5.01396527,253.59,253.53,2.5]
[1732305477108,3.15664436,253.62,253.53,2.5]
[1732305477424,4.51474639,253.62,253.53,2.5]
[1732305477630,4.51474639,253.61,253.53,2.5]
[1732305477928,4.51474639,253.61,253.53,5.0]
[1732305477929,4.34474639,253.61,253.53,5.0]
[1732305478101,4.34474639,253.61,253.53,2.5]
[1732305478823,4.34474639,253.61,253.52,19.18785609]
[1732305479129,7.82639075,253.61,253.5,19.13137155]
[1732305479320,3.48164436,253.6,253.5,19.13137155]
[1732305479631,4.50246861,253.59,253.5,19.13137155]
[1732305480227,4.50246861,253.59,253.47,22.21592325]
[1732305480618,4.50246861,253.59,253.47,27.95373707]
[1732305480824,4.50246861,253.59,253.47,25.45373707]
[1732305481031,4.50246861,253.59,253.48,20.0]
[1732305481327,4.50246861,253.59,253.48,19.04396669]
[1732305481523,4.50246861,253.59,253.49,2.5]
[1732305481726,4.50246861,253.59,253.5,2.5]
[1732305481930,4.50246861,253.59,253.51,2.5]
[1732305483511,4.50246861,253.59,253.49,8.23781382]
[1732305483912,4.50246861,253.59,253.49,5.73781382]
[1732305486334,4.50246861,253.59,253.49,8.23781382]
[1732305487437,4.50246861,253.59,253.52,2.5]
[1732305488935,4.50246861,253.59,253.53,2.5]
[1732305489129,4.50246861,253.59,253.55,2.5]
[1732305489742,4.50246861,253.59,253.53,2.5]
[1732305490036,4.50246861,253.59,253.55,5.0]
[1732305491042,4.50246861,253.59,253.57,5.0]
[1732305491218,4.50246861,253.59,253.57,2.5]
[1732305491426,4.50246861,253.59,253.58,2.5]
[1732305492022,4.50246861,253.59,253.57,2.5]
[1732305492424,4.50246861,253.59,253.58,2.5]
[1732305493725,4.64886306,253.65,253.58,2.5]
[1732305493925,4.64886306,253.65,253.6,2.5]
[1732305494429,4.64886306,253.65,253.57,2.5]
[1732305496751,8.13050742,253.65,253.52,19.18785609]
[1732305496945,8.13050742,253.65,253.49,5.73781382]
[1732305496946,12.53149077,253.64,253.49,22.2179446]
[1732305497255,7.58465492,253.63,253.49,22.2179446]
[1732305497551,6.41743622,253.62,253.49,19.7179446]
[1732305497744,4.64886306,253.61,253.49,19.7179446]
[1732305498049,4.64886306,253.61,253.5,2.5]
[1732305498235,4.64886306,253.61,253.5,8.23781382]
[1732305498551,3.48164436,253.6,253.5,8.23781382]
[1732305498747,4.64886306,253.59,253.5,5.73781382]
[1732305498956,4.64886306,253.59,253.49,22.2179446]
[1732305499532,4.64886306,253.59,253.49,2.5]
[1732305499728,7.7646,253.58,253.47,2.5]
[1732305499933,4.64886306,253.57,253.45,5.0]
[1732305500140,4.64886306,253.57,253.49,2.5]
[1732305500555,4.64886306,253.57,253.5,2.5]
[1732305501061,4.64886306,253.57,253.51,2.5]
[1732305502156,4.64886306,253.57,253.52,2.5]
[1732305502350,4.64886306,253.57,253.53,2.5]
[1732305502548,8.58336467,253.57,253.53,2.5]
[1732305502747,3.93450161,253.56,253.45,21.70907965]
[1732305502944,4.64886306,253.55,253.45,21.70907965]
[1732305503265,8.58336467,253.55,253.45,21.70907965]
[1732305503437,7.7646,253.54,253.43,2.5]
[1732305503636,4.64886306,253.53,253.47,2.5]
[1732305503954,4.64886306,253.53,253.47,22.21592325]
[1732305507342,4.64886306,253.53,253.51,2.5]
[1732305508060,4.64886306,253.53,253.52,2.5]
[1732305508444,4.64886306,253.53,253.51,21.86945417]
[1732305509855,4.64886306,253.53,253.52,45.46474009]
[1732305510962,4.64886306,253.53,253.52,19.18785609]
[1732305512272,4.64886306,253.53,253.49,2.5]
[1732305513267,4.64886306,253.53,253.52,5.0]
[1732305513441,4.64886306,253.53,253.52,24.18785609]
[1732305519373,4.64886306,253.53,253.52,21.68785609]
[1732305519571,4.64886306,253.53,253.52,2.5]
[1732305520668,6.114055,253.61,253.52,2.5]
[1732305520867,8.59362022,253.6,253.52,2.5]
[1732305521460,8.59362022,253.6,253.52,5.0]
[1732305522072,8.59362022,253.6,253.54,2.5]
[1732305522268,8.59362022,253.6,253.54,5.0]
[1732305522567,8.59362022,253.6,253.56,2.5]
[1732305524470,8.59362022,253.6,253.56,5.0]
[1732305527154,8.59362022,253.6,253.58,2.5]
[1732305527355,4.65911861,253.6,253.58,2.5]
[1732305528375,4.65911861,253.6,253.59,2.5]
[1732305530156,4.65911861,253.6,253.58,2.5]
[1732305530360,4.65911861,253.6,253.59,2.5]
[1732305534085,8.59362022,253.6,253.57,2.5]
[1732305535675,8.59362022,253.6,253.57,5.0]
[1732305535986,8.59362022,253.6,253.57,2.5]
[1732305536287,8.59362022,253.6,253.57,5.0]
[1732305538471,8.59362022,253.6,253.57,2.5]
[1732305539085,8.59362022,253.6,253.59,2.5]
[1732305539398,8.59362022,253.6,253.59,5.0]
[1732305540470,8.59362022,253.6,253.54,25.42466418]
[1732305540471,8.59362022,253.6,253.57,2.5]
[1732305540870,3.93450161,253.59,253.55,2.5]
[1732305541083,4.65911861,253.58,253.55,2.5]
[1732305541278,3.93450161,253.57,253.55,2.5]
[1732305541484,4.65911861,253.56,253.55,2.5]
[1732305541687,8.59362022,253.56,253.55,2.5]
[1732305541986,8.59362022,253.56,253.52,2.5]
[1732305542177,8.59362022,253.56,253.54,2.5]
[1732305542379,8.59362022,253.56,253.55,2.5]
[1732305542689,8.59362022,253.56,253.5,2.5]
[1732305542690,3.93450161,253.55,253.5,2.5]
[1732305542875,4.65911861,253.54,253.5,2.5]
[1732305543072,8.87528689,253.54,253.5,2.5]
[1732305543272,4.65911861,253.54,253.48,2.5]
[1732305543478,4.21616828,253.53,253.48,2.5]
[1732305543682,4.65911861,253.52,253.48,2.5]
[1732305544284,8.87528689,253.52,253.48,2.5]
[1732305544484,8.87528689,253.52,253.48,5.0]
[1732305544786,8.87528689,253.52,253.48,2.5]
[1732305545391,8.87528689,253.52,253.48,5.0]
[1732305545593,8.87528689,253.52,253.45,5.13014282]
[1732305545770,5.0,253.47,253.33,2.5]
[1732305545973,23.776884,253.44,253.31,2.5]
[1732305546196,13.60734024,253.43,253.31,2.5]
[1732305546387,23.776884,253.42,253.31,2.5]
[1732305546595,6.71176797,253.41,253.33,2.5]
[1732305546893,23.776884,253.4,253.33,2.5]
[1732305547194,6.71176797,253.39,253.37,2.5]
[1732305547400,6.71176797,253.39,253.38,2.5]
[1732305549097,11.41264208,253.39,253.38,2.5]
[1732305553893,11.41264208,253.39,253.38,21.87299436]
[1732305554281,4.70087411,253.39,253.38,28.19579436]
[1732305554697,7.7646,253.61,253.44,2.5]
[1732305554997,7.7646,253.61,253.41,19.49049125]
[1732305554998,13.40635428,253.6,253.48,5.0]
[1732305555199,10.47769117,253.6,253.48,2.5]
[1732305555997,23.776884,253.59,253.48,2.5]
[1732305556202,23.776884,253.57,253.48,2.5]
[1732305556500,7.7646,253.61,253.41,19.49049125]
[1732305556501,10.47769117,253.56,253.52,2.5]
[1732305557000,10.47769117,253.56,253.49,2.5]
[1732305557189,10.47769117,253.56,253.5,2.5]
[1732305557506,10.47769117,253.56,253.52,2.5]
[1732305558905,10.47769117,253.56,253.53,2.5]
[1732305559888,10.47769117,253.56,253.52,2.5]
[1732305562091,10.47769117,253.56,253.53,2.5]
[1732305564010,10.47769117,253.56,253.51,2.5]
[1732305564309,10.47769117,253.56,253.53,2.5]
[1732305564719,10.47769117,253.56,253.51,5.0]
[1732305566298,10.47769117,253.56,253.51,2.5]
[1732305566704,10.47769117,253.56,253.51,5.0]
[1732305566911,10.47769117,253.56,253.53,2.5]
[1732305567210,10.47769117,253.56,253.51,2.5]
[1732305568014,10.47769117,253.56,253.49,2.5]
[1732305570710,10.47769117,253.56,253.47,5.0]
[1732305571093,10.47769117,253.56,253.5,2.5]
[1732305572106,10.47769117,253.56,253.5,5.0]
[1732305572504,10.47769117,253.56,253.5,2.5]
[1732305572812,10.47769117,253.56,253.5,5.0]
[1732305574207,10.47769117,253.56,253.5,2.5]
[1732305574412,10.47769117,253.56,253.5,5.0]
[1732305574915,10.47769117,253.56,253.52,2.5]
[1732305575217,10.47769117,253.56,253.5,2.5]
[1732305575405,10.47769117,253.56,253.52,2.5]
[1732305576006,10.47769117,253.56,253.54,2.5]
[1732305577519,10.47769117,253.56,253.52,5.0]
[1732305580624,10.47769117,253.56,253.52,2.5]
[1732305581013,10.47769117,253.56,253.5,5.0]
[1732305581200,10.47769117,253.56,253.48,5.0]
[1732305581398,23.776884,253.55,253.48,2.5]
[1732305581604,6.11632463,253.54,253.48,2.5]
[1732305581825,10.34081647,253.54,253.48,2.5]
[1732305583603,10.34081647,253.54,253.44,15.1171]
[1732305583604,10.34081647,253.54,253.5,2.5]
[1732305584018,10.34081647,253.54,253.48,2.5]
[1732305584808,10.34081647,253.54,253.5,5.0]
[1732305586115,10.34081647,253.54,253.5,2.5]
[1732305586929,10.34081647,253.54,253.5,5.0]
[1732305587110,10.34081647,253.54,253.5,2.5]
[1732305588321,23.776884,253.53,253.48,2.5]
[1732305588508,10.34081647,253.52,253.48,2.5]
[1732305589210,23.776884,253.51,253.48,2.5]
[1732305589410,10.34081647,253.5,253.48,2.5]
[1732305599231,10.34081647,253.5,253.48,5.0]
[1732305599735,10.34081647,253.5,253.48,2.5]
[1732305602138,10.34081647,253.5,253.42,2.5]
[1732305602533,7.7646,253.57,253.42,2.5]
[1732305602534,23.776884,253.54,253.43,2.5]
[1732305602739,9.59397973,253.52,253.45,5.0]
[1732305602919,2.93858922,253.51,253.45,2.5]
[1732305603120,23.776884,253.56,253.44,2.5]
[1732305603347,5.26475857,253.52,253.42,2.5]
[1732305603523,3.63632262,253.51,253.4,2.5]
[1732305603728,8.52084863,253.51,253.42,2.5]
[1732305603935,23.776884,253.56,253.42,2.5]
[1732305604233,7.7646,253.57,253.42,2.5]
[1732305604234,23.776884,253.54,253.42,2.5]
[1732305604441,2.93676314,253.53,253.43,2.5]
[1732305604745,2.93676314,253.52,253.43,2.5]
[1732305604945,2.93676314,253.51,253.43,2.5]
[1732305605248,7.7646,253.52,253.43,2.5]
[1732305605442,7.7646,253.57,253.43,2.5]
[1732305605443,4.20446129,253.56,253.43,2.5]
[1732305605840,4.20446129,253.56,253.39,5.0]
[1732305606026,4.6993,253.55,253.38,16.036]
[1732305606226,4.6993,253.55,253.35,5.0]
[1732305606227,4.57243351,253.54,253.35,5.0]
[1732305606431,23.776884,253.53,253.35,2.5]
[1732305606635,4.57243351,253.52,253.33,2.5]
[1732305606853,23.776884,253.51,253.33,2.5]
[1732305607026,23.776884,253.49,253.29,2.5]
[1732305607223,5.02671129,253.48,253.29,2.5]
[1732305607636,23.776884,253.47,253.29,2.5]
[1732305607845,23.776884,253.45,253.29,2.5]
[1732305608051,24.2539,253.42,253.19,2.5]
[1732305608229,29.13198973,253.41,253.26,2.5]
[1732305608425,29.13198973,253.41,253.14,19.93631176]
[1732305608426,5.35510573,253.41,253.29,2.5]
[1732305608739,15.89716665,253.58,253.35,2.5]
[1732305608740,4.6993,253.48,253.35,2.5]
[1732305608942,4.6993,253.48,253.33,2.5]
[1732305609239,4.6993,253.48,253.35,2.5]
[1732305609425,4.6993,253.48,253.29,2.5]
[1732305609626,4.6993,253.48,253.34,2.5]
[1732305609826,4.6993,253.55,253.38,2.5]
[1732305610048,4.6993,253.55,253.4,5.0]
[1732305610251,4.6993,253.55,253.38,15.0417]
[1732305610651,9.39411703,253.55,253.38,15.0417]
[1732305610953,4.6993,253.55,253.38,15.0417]
[1732305611124,4.6993,253.55,253.38,17.5417]
[1732305611831,6.48351203,253.58,253.43,2.5]
[1732305612248,11.17832906,253.58,253.43,2.5]
[1732305612543,4.69481703,253.57,253.43,2.5]
[1732305612752,4.43390365,253.57,253.44,2.5]
[1732305612933,4.43390365,253.57,253.46,2.5]
[1732305613257,6.74442541,253.58,253.46,2.5]
[1732305613434,2.04960838,253.58,253.46,2.5]
[1732305613832,4.88731645,253.61,253.5,18.3688]
[1732305614154,6.11405455,253.65,253.5,15.8688]
[1732305614351,3.53443022,253.62,253.5,18.3688]
[1732305614537,3.53443022,253.62,253.51,2.5]
[1732305614734,3.53443022,253.62,253.5,18.3688]
[1732305614934,3.53443022,253.62,253.51,2.5]
[1732305615160,3.53443022,253.62,253.5,15.8688]
[1732305615841,6.114055,253.61,253.5,15.8688]
[1732305616462,6.114055,253.61,253.5,18.3688]
[1732305616751,6.11405455,253.66,253.51,2.5]
[1732305617131,2.93086968,253.65,253.51,2.5]
[1732305617356,2.93086968,253.64,253.51,2.5]
[1732305617555,2.93086968,253.65,253.53,2.5]
[1732305617757,2.93086968,253.64,253.53,2.5]
[1732305617933,9.04492423,253.65,253.51,2.5]
[1732305618257,2.93086968,253.64,253.51,2.5]
[1732305618550,2.93086968,253.63,253.5,15.8688]
[1732305618769,2.93086968,253.62,253.5,15.8688]
[1732305618947,2.93086968,253.61,253.5,15.8688]
[1732305619154,2.93086968,253.6,253.5,15.8688]
[1732305619465,2.93086968,253.59,253.5,15.8688]
[1732305619658,2.93086968,253.58,253.5,15.8688]
[1732305619861,2.93086968,253.57,253.5,15.8688]
[1732305620054,2.93086968,253.56,253.5,15.8688]
[1732305620268,2.93086968,253.55,253.5,15.8688]
[1732305620462,9.04492423,253.63,253.5,15.8688]
[1732305620767,2.93086968,253.62,253.5,15.8688]
[1732305620950,6.11405455,253.63,253.5,15.8688]
[1732305620951,2.93086968,253.61,253.5,15.8688]
[1732305621154,2.93086968,253.6,253.5,15.8688]
[1732305621467,2.93120197,253.59,253.51,2.5]
[1732305621859,2.93120197,253.58,253.46,2.5]
[1732305622069,2.93120197,253.57,253.46,5.0]
[1732305622253,2.93120197,253.56,253.46,2.5]
[1732305622454,2.93120197,253.55,253.45,8.8881]
[1732305622660,2.93120197,253.54,253.45,8.8881]
[1732305622859,2.93120197,253.53,253.45,8.8881]
[1732305623061,2.93120197,253.52,253.45,8.8881]
[1732305623372,6.11405455,253.62,253.45,8.8881]
[1732305624069,6.11405455,253.62,253.45,6.3881]
[1732305624769,6.11405455,253.61,253.45,6.3881]
[1732305625075,2.04883651,253.68,253.39,6.3296]
[1732305625076,18.20030116,253.6,253.39,6.3296]
[1732305625572,6.11405455,253.6,253.39,6.3296]
[1732305625747,6.11405455,253.6,253.43,2.5]
[1732305625950,6.11405455,253.61,253.45,5.0]
[1732305626173,6.11405455,253.61,253.45,2.5]
[1732305626556,6.11405455,253.61,253.43,2.5]
[1732305626758,6.11405455,253.59,253.45,2.5]
[1732305626984,6.11405455,253.6,253.45,2.5]
[1732305627150,6.11405455,253.6,253.43,5.0]
[1732305628176,6.03539,253.6,253.43,5.0]
[1732305628353,6.03539,253.6,253.4,2.5]
[1732305628555,12.2281091,253.61,253.39,6.3296]
[1732305628857,14.94286688,253.61,253.39,6.3296]
[1732305629980,14.94286688,253.61,253.4,2.5]
[1732305631262,12.2281091,253.58,253.4,2.5]
[1732305631475,12.2281091,253.58,253.39,6.3296]
[1732305631680,14.94230649,253.57,253.39,6.3296]
[1732305631974,12.2281091,253.57,253.39,6.3296]
[1732305632359,11.81316233,253.57,253.39,6.3296]
[1732305632864,2.72278101,253.56,253.55,12.09881092]
[1732305633358,2.72278101,253.57,253.54,12.09881092]
[1732305633559,2.72278101,253.56,253.54,12.09881092]
[1732305633765,24.4562182,253.59,253.54,12.09881092]
[1732305633961,38.96953891,253.58,253.5,12.09881092]
[1732305634166,14.51332071,253.57,253.48,12.09881092]
[1732305634381,14.82213163,253.56,253.48,12.09881092]
[1732305634581,23.88881092,253.54,253.46,12.09881092]